bitfinex/quotes_SOLUSD_20250108
["timestamp","ask_amount","ask_price","bid_price","bid_amount"]
[1736367619435,6.0543,194.86,194.77,15.91363674]
[1736367619833,6.0543,194.86,194.77,23.776884]
[1736367620037,6.0543,194.86,194.77,39.69052074]
[1736367620444,6.1374,194.91,194.79,23.776884]
[1736367620622,6.1374,194.91,194.8,15.91363674]
[1736367620957,6.1374,194.91,194.8,39.69052074]
[1736367621529,6.1374,194.91,194.8,15.91363674]
[1736367622957,6.1374,194.91,194.81,15.91363674]
[1736367623129,6.1374,194.91,194.82,2.6]
[1736367623737,6.1374,194.91,194.82,18.51363674]
[1736367625027,6.1374,194.91,194.82,2.6]
[1736367625459,6.1374,194.91,194.82,18.51363674]
[1736367626726,6.1374,194.91,194.82,15.91363674]
[1736367626926,6.1374,194.91,194.83,2.6]
[1736367627858,23.776884,194.9,194.83,2.6]
[1736367628230,23.776884,194.9,194.8,2.6]
[1736367629230,23.776884,194.9,194.79,15.91363674]
[1736367629451,23.776884,194.9,194.8,2.6]
[1736367629852,20.0,194.87,194.8,2.6]
[1736367630734,20.0,194.87,194.8,18.51363674]
[1736367631363,105.076884,194.9,194.8,18.51363674]
[1736367631760,105.076884,194.9,194.81,15.91363674]
[1736367632074,6.1374,194.91,194.81,15.91363674]
[1736367632951,6.1374,194.91,194.8,18.51363674]
[1736367635044,6.1374,194.91,194.81,15.91363674]
[1736367635940,6.1374,194.91,194.83,15.91363674]
[1736367636146,0.5169,194.94,194.85,15.91363674]
[1736367637041,0.5169,194.94,194.84,20.0]
[1736367637244,0.5169,194.94,194.85,2.6]
[1736367637663,0.5169,194.94,194.85,18.51363674]
[1736367638368,0.5169,194.94,194.86,15.91363674]
[1736367638575,6.4819,194.96,194.86,15.91363674]
[1736367639353,6.4819,194.96,194.87,15.91363674]
[1736367639679,6.4819,194.96,194.88,15.91363674]
[1736367640450,6.4819,194.96,194.87,15.91363674]
[1736367640671,0.5169,194.98,194.88,15.91363674]
[1736367640870,0.5169,194.98,194.86,39.69052074]
[1736367641350,20.0,194.96,194.85,141.1]
[1736367641550,23.776884,194.95,194.81,15.91363674]
[1736367641768,20.0,194.92,194.82,2.6]
[1736367642662,20.0,194.96,194.82,2.6]
[1736367643079,20.0,194.92,194.82,2.6]
[1736367643675,20.0,194.92,194.82,18.51363674]
[1736367643899,20.0,194.92,194.83,15.91363674]
[1736367644185,3.1169,194.98,194.86,15.91363674]
[1736367644348,24.293784,194.98,194.86,15.91363674]
[1736367644550,20.0,194.95,194.84,39.69052074]
[1736367644856,0.5169,194.98,194.87,15.91363674]
[1736367645458,20.0,194.96,194.87,15.91363674]
[1736367645771,0.5169,194.98,194.88,15.91363674]
[1736367646456,0.5169,195.02,194.88,15.91363674]
[1736367648770,0.5169,195.02,194.87,17.46003674]
[1736367649156,0.5169,195.02,194.88,15.91363674]
[1736367650474,0.5169,195.02,194.89,23.776884]
[1736367650677,20.0,194.97,194.86,138.5]
[1736367650984,20.0,194.97,194.91,23.776884]
[1736367653276,20.0,194.97,194.86,138.5]
[1736367653479,20.0,194.97,194.87,18.51363674]
[1736367653684,20.0,194.97,194.88,23.776884]
[1736367654761,20.0,194.97,194.86,138.5]
[1736367654964,20.0,194.96,194.82,1.5464]
[1736367655184,0.5169,194.95,194.83,2.6]
[1736367655489,0.5169,194.95,194.84,23.776884]
[1736367660892,0.5169,194.95,194.85,15.91363674]
[1736367661082,81.3,194.99,194.87,15.91363674]
[1736367661289,6.8323,195.0,194.87,15.91363674]
[1736367661974,20.0,194.97,194.87,20.0]
[1736367662369,20.0,194.97,194.87,35.91363674]
[1736367662987,20.0,194.97,194.87,20.0]
[1736367663576,20.0,194.97,194.85,39.69052074]
[1736367663775,20.0,194.97,194.86,2.6]
[1736367664091,20.0,194.96,194.86,2.6]
[1736367665678,19.72931434,194.96,194.86,2.6]
[1736367666891,19.72931434,194.96,194.86,18.51363674]
[1736367667289,19.72931434,194.96,194.86,2.6]
[1736367670488,19.72931434,194.96,194.87,23.776884]
[1736367670696,14.76755287,195.0,194.87,39.69052074]
[1736367670890,20.0,194.97,194.87,39.69052074]
[1736367671276,20.0,194.97,194.87,23.776884]
[1736367671580,20.0,194.97,194.82,155.96003674]
[1736367671777,20.0,194.97,194.83,2.6]
[1736367672297,20.0,194.95,194.84,20.0]
[1736367672505,6.3091,194.94,194.85,2.6]
[1736367673807,6.3091,194.94,194.86,23.776884]
[1736367673980,6.3091,194.94,194.86,39.69052074]
[1736367674801,6.3091,194.94,194.86,23.776884]
[1736367675407,6.3091,194.94,194.86,39.69052074]
[1736367675711,0.5169,195.0,194.86,39.69052074]
[1736367675913,6.5384,194.99,194.9,15.91363674]
[1736367676090,6.5384,194.99,194.91,15.91363674]
[1736367676604,6.5384,194.99,194.9,59.69052074]
[1736367677277,6.5384,194.99,194.9,43.776884]
[1736367680112,6.5384,194.99,194.9,20.0]
[1736367680406,6.5384,194.99,194.91,2.6]
[1736367681801,6.5384,194.99,194.9,22.6]
[1736367682610,6.5384,194.99,194.9,2.6]
[1736367682810,20.0,194.96,194.82,1.5925]
[1736367683107,20.0,194.95,194.83,2.6]
[1736367683280,6.2298,194.93,194.79,15.91363674]
[1736367683482,20.0,194.9,194.77,20.10613674]
[1736367683890,20.0,194.9,194.8,20.0]
[1736367684192,20.0,194.9,194.78,39.69052074]
[1736367684406,20.0,194.9,194.79,15.91363674]
[1736367684787,20.0,194.9,194.78,39.69052074]
[1736367685301,20.0,194.9,194.77,17.50613674]
[1736367685607,20.0,194.9,194.74,64.75363674]
[1736367685917,20.0,194.9,194.75,23.776884]
[1736367686081,20.0,194.89,194.74,62.15363674]
[1736367686793,20.0,194.87,194.75,35.91363674]
[1736367687186,0.5169,194.86,194.75,20.0]
[1736367687815,0.5169,194.86,194.74,23.776884]
[1736367687986,6.233,194.85,194.74,23.776884]
[1736367688492,6.233,194.85,194.74,39.69052074]
[1736367689714,6.233,194.85,194.7,2.6]
[1736367689902,6.233,194.85,194.72,15.91363674]
[1736367690321,6.233,194.85,194.71,39.69052074]
[1736367690322,20.0,194.82,194.71,39.69052074]
[1736367690491,20.0,194.82,194.72,23.776884]
[1736367690691,20.0,194.82,194.71,15.91363674]
[1736367690907,20.0,194.82,194.71,23.776884]
[1736367691387,20.0,194.82,194.74,15.91363674]
[1736367691712,6.233,194.85,194.72,59.69052074]
[1736367691902,6.233,194.85,194.72,39.69052074]
[1736367693512,6.233,194.85,194.73,15.91363674]
[1736367695119,6.233,194.85,194.74,15.91363674]
[1736367695714,6.233,194.85,194.73,15.91363674]
[1736367696717,6.233,194.85,194.74,15.91363674]
[1736367698612,6.233,194.85,194.74,23.776884]
[1736367699096,6.233,194.85,194.74,39.69052074]
[1736367699302,6.233,194.85,194.74,30.1384297]
[1736367700825,6.233,194.85,194.74,43.776884]
[1736367701219,6.233,194.85,194.74,53.9153137]
[1736367701621,6.233,194.85,194.8,10.1384297]
[1736367701920,6.2175,194.9,194.83,10.1384297]
[1736367702142,6.2175,194.9,194.84,10.1384297]
[1736367702323,6.0631,194.95,194.85,10.1384297]
[1736367702931,6.0631,194.95,194.84,10.1384297]
[1736367703226,6.0631,194.95,194.84,30.1384297]
[1736367703425,6.0631,194.95,194.84,35.82476179]
[1736367703721,6.0631,194.95,194.84,20.0]
[1736367704024,6.0631,194.95,194.84,35.82476179]
[1736367704204,6.0631,194.95,194.85,23.776884]
[1736367705129,6.0631,194.95,194.82,0.76958716]
[1736367705303,20.0,194.92,194.78,138.5]
[1736367705502,20.0,194.92,194.83,2.6]
[1736367706503,6.0631,194.95,194.84,15.82476179]
[1736367706710,6.0631,194.95,194.84,23.776884]
[1736367707422,6.0631,194.95,194.84,39.60164579]
[1736367707909,6.0631,194.95,194.85,16.59427772]
[1736367708107,6.0631,194.95,194.86,15.82476179]
[1736367708604,6.6729,195.01,194.88,15.82476179]
[1736367708817,6.6729,195.01,194.87,16.59419145]
[1736367709232,20.0,194.98,194.87,16.59419145]
[1736367709419,20.0,194.98,194.86,39.60164579]
[1736367709643,20.0,194.98,194.86,40.37112316]
[1736367709934,20.0,194.98,194.87,18.42476179]
[1736367711337,20.0,194.98,194.9,15.82476179]
[1736367711532,20.0,194.98,194.89,39.60164579]
[1736367712334,20.0,194.98,194.88,15.82476179]
[1736367712627,20.0,194.98,194.89,23.776884]
[1736367714635,20.0,194.98,194.9,15.82476179]
[1736367714823,6.6729,195.01,194.91,15.82476179]
[1736367715222,6.6729,195.01,194.9,15.82476179]
[1736367716425,6.6729,195.01,194.89,39.60164579]
[1736367716733,6.6729,195.01,194.9,15.82476179]
[1736367718340,6.6729,195.01,194.92,15.82476179]
[1736367718528,6.156,195.01,194.94,15.82476179]
[1736367718838,6.156,195.01,194.95,2.6]
[1736367719050,6.156,195.01,194.96,2.6]
[1736367725369,20.0,194.98,194.89,10.12165481]
[1736367725648,20.5169,194.98,194.83,148.62165481]
[1736367725853,20.5169,194.98,194.86,20.0]
[1736367726052,20.5169,194.98,194.84,2.6]
[1736367726251,20.0,194.94,194.84,2.6]
[1736367726547,20.0,194.94,194.84,22.6]
[1736367728339,20.0,194.94,194.84,2.6]
[1736367729344,0.5169,194.92,194.78,15.83213745]
[1736367729541,20.0,194.89,194.76,19.98513745]
[1736367729744,20.0,194.89,194.76,4.153]
[1736367730448,20.0,194.89,194.76,2.6]
[1736367730642,20.0,194.89,194.74,15.83213745]
[1736367730844,20.0,194.89,194.74,23.776884]
[1736367731149,86.3,194.94,194.73,2.6]
[1736367731150,20.0,194.87,194.73,2.6]
[1736367731457,20.0,194.87,194.74,23.776884]
[1736367735032,20.0,194.87,194.74,39.60902145]
[1736367735446,6.1736,194.86,194.73,2.6]
[1736367735752,0.5169,194.85,194.74,20.0]
[1736367736955,0.5169,194.85,194.71,35.83213745]
[1736367736956,24.293784,194.85,194.71,35.83213745]
[1736367737937,20.0,194.82,194.68,15.83213745]
[1736367738250,20.0,194.82,194.69,15.83213745]
[1736367738448,20.0,194.82,194.7,39.60902145]
[1736367738747,20.0,194.82,194.7,23.776884]
[1736367738956,20.0,194.82,194.69,15.83213745]
[1736367739645,20.0,194.78,194.66,2.6]
[1736367740047,20.0,194.78,194.68,20.0]
[1736367740439,6.6905,194.81,194.7,15.83213745]
[1736367742568,6.6905,194.81,194.69,23.776884]
[1736367742742,6.6905,194.81,194.69,20.0]
[1736367743138,20.0,194.78,194.66,18.43213745]
[1736367743352,13.68821,194.78,194.65,62.07213745]
[1736367743557,13.68821,194.78,194.65,64.67213745]
[1736367743957,13.68821,194.78,194.66,15.83213745]
[1736367744383,13.68821,194.78,194.65,46.24]
[1736367744566,6.6905,194.81,194.65,46.24]
[1736367744567,23.776884,194.79,194.65,46.24]
[1736367745473,20.0,194.76,194.65,46.24]
[1736367746185,20.0,194.76,194.62,37.37243745]
[1736367746186,0.5169,194.74,194.62,37.37243745]
[1736367746385,20.0,194.72,194.6,2.6]
[1736367746694,20.0,194.72,194.6,18.43213745]
[1736367746888,20.0,194.72,194.61,35.83213745]
[1736367747582,20.0,194.72,194.61,15.83213745]
[1736367747956,20.0,194.72,194.61,20.0]
[1736367748176,20.0,194.72,194.59,15.83213745]
[1736367749477,20.0,194.72,194.6,39.60902145]
[1736367749779,20.0,194.72,194.61,15.83213745]
[1736367750997,20.0,194.72,194.6,15.83213745]
[1736367752078,0.5169,194.74,194.63,15.83213745]
[1736367752407,0.5169,194.74,194.65,15.83213745]
[1736367752586,0.5169,194.74,194.66,15.83213745]
[1736367752906,0.5169,194.74,194.65,15.83213745]
[1736367753281,0.5169,194.74,194.65,10.14774142]
[1736367753481,0.5169,194.74,194.64,10.14774142]
[1736367753788,0.5169,194.74,194.61,23.776884]
[1736367753990,20.0,194.72,194.6,138.5]
[1736367755883,20.0,194.72,194.6,148.64774142]
[1736367756785,20.0,194.72,194.6,10.14774142]
[1736367756991,20.0,194.72,194.62,10.14774142]
[1736367757408,0.5169,194.74,194.63,10.14774142]
[1736367757907,0.5169,194.74,194.62,10.14774142]
[1736367759321,0.5169,194.74,194.64,10.14774142]
[1736367759686,0.5169,194.74,194.65,10.14774142]
[1736367759917,0.5169,194.74,194.66,2.6]
[1736367762240,0.5169,194.74,194.66,12.74774142]
[1736367763129,0.5169,194.74,194.67,10.14774142]
[1736367764209,0.5169,194.74,194.66,2.6]
[1736367764404,0.5169,194.74,194.66,12.74774142]
[1736367765613,6.6108,194.75,194.67,33.92462542]
[1736367765829,0.5169,194.79,194.68,10.14774142]
[1736367765987,0.5169,194.79,194.69,10.14774142]
[1736367766915,0.5169,194.79,194.7,10.14774142]
[1736367767395,0.5169,194.79,194.69,10.14774142]
[1736367768501,0.5169,194.79,194.7,23.776884]
[1736367770723,0.5169,194.79,194.69,23.776884]
[1736367771101,0.5169,194.79,194.69,33.92462542]
[1736367772203,0.5169,194.79,194.7,20.0]
[1736367772411,6.384,194.81,194.72,10.14774142]
[1736367772614,6.384,194.81,194.73,33.92462542]
[1736367772813,6.384,194.81,194.74,2.6]
[1736367774607,6.384,194.81,194.74,12.74774142]
[1736367775422,0.5169,194.84,194.75,23.776884]
[1736367776329,0.5169,194.84,194.75,33.92462542]
[1736367777523,0.5169,194.84,194.77,33.92462542]
[1736367777827,0.5169,194.84,194.75,10.14774142]
[1736367778203,0.5169,194.84,194.76,23.776884]
[1736367779629,0.5169,194.84,194.76,33.92462542]
[1736367780633,0.5169,194.84,194.77,10.14774142]
[1736367780929,6.1284,194.86,194.76,10.14774142]
[1736367781113,6.1284,194.86,194.77,10.14774142]
[1736367781435,6.1284,194.86,194.78,10.14774142]
[1736367781607,6.1284,194.86,194.77,10.14774142]
[1736367783227,6.1284,194.86,194.76,10.14774142]
[1736367783936,6.1284,194.86,194.75,23.776884]
[1736367784436,6.1284,194.86,194.74,22.6]
[1736367785138,20.0,194.83,194.74,2.6]
[1736367785306,0.5169,194.82,194.71,2.6]
[1736367787010,0.5169,194.82,194.71,12.74774142]
[1736367788017,0.5169,194.82,194.71,10.14774142]
[1736367788227,0.5169,194.82,194.72,2.6]
[1736367788834,0.5169,194.82,194.72,12.74774142]
[1736367789238,0.5169,194.82,194.72,2.6]
[1736367789629,0.5169,194.82,194.72,12.74774142]
[1736367789842,0.5169,194.82,194.73,10.14774142]
[1736367790444,0.5169,194.82,194.72,12.74774142]
[1736367790637,0.5169,194.82,194.72,2.6]
[1736367791146,20.5169,194.82,194.72,2.6]
[1736367791521,20.5169,194.82,194.72,12.74774142]
[1736367792024,0.5169,194.82,194.72,2.6]
[1736367795246,0.5169,194.82,194.73,33.92462542]
[1736367795551,0.5169,194.82,194.75,10.14774142]
[1736367796045,6.6453,194.86,194.76,10.14774142]
[1736367796940,6.6453,194.86,194.75,10.14774142]
[1736367797729,6.6453,194.86,194.77,33.92462542]
[1736367797927,6.6453,194.86,194.77,10.14774142]
[1736367798151,6.6453,194.86,194.77,30.14774142]
[1736367799155,6.6453,194.86,194.77,43.776884]
[1736367801662,6.6453,194.86,194.77,53.92462542]
[1736367802747,6.6453,194.86,194.77,43.776884]
[1736367802951,6.6453,194.86,194.77,53.92462542]
[1736367804653,6.6453,194.86,194.78,23.776884]
[1736367804959,6.6453,194.86,194.79,10.14774142]
[1736367805448,0.5169,194.9,194.81,10.14774142]
[1736367805756,0.5169,194.9,194.82,10.14774142]
[1736367805955,0.5169,194.9,194.83,10.14774142]
[1736367806336,0.5169,194.9,194.81,10.14774142]
[1736367806929,0.5169,194.9,194.83,10.14774142]
[1736367807956,8.45215287,194.95,194.85,23.776884]
[1736367808265,0.5169,194.95,194.85,23.776884]
[1736367808759,0.5169,194.95,194.83,10.14774142]
[1736367808939,0.5169,194.95,194.82,31.80914142]
[1736367809343,20.0,194.93,194.82,31.80914142]
[1736367809551,20.0,194.93,194.8,12.74774142]
[1736367809759,20.0,194.93,194.8,2.6]
[1736367810144,6.2567,194.92,194.8,2.6]
[1736367811035,0.5169,194.88,194.81,2.58]
[1736367825569,0.5169,194.88,194.81,12.72774142]
[1736367825764,0.5169,194.88,194.81,2.58]
[1736367829349,6.2567,194.92,194.81,12.72774142]
[1736367829675,6.2567,194.92,194.82,23.776884]
[1736367832081,6.2567,194.92,194.82,33.92462542]
[1736367834167,6.2567,194.92,194.82,23.776884]
[1736367834877,6.2567,194.92,194.81,2.58]
[1736367835190,20.0,194.89,194.79,138.5]
[1736367835351,20.0,194.89,194.8,2.58]
[1736367835557,20.0,194.89,194.79,2.58]
[1736367835959,0.5169,194.88,194.79,2.58]
[1736367844985,20.5169,194.88,194.79,12.72774142]
[1736367845280,0.5169,194.88,194.79,12.72774142]
[1736367851283,0.5169,194.88,194.8,33.92462542]
[1736367851483,14.19195287,194.92,194.82,10.14774142]
[1736367851683,14.19195287,194.92,194.83,10.14774142]
[1736367851987,6.2567,194.92,194.83,10.14774142]
[1736367852313,6.2567,194.92,194.82,10.14774142]
[1736367854000,6.2567,194.92,194.83,10.14774142]
[1736367854963,6.2567,194.92,194.85,10.14774142]
[1736367856303,6.2567,194.92,194.86,10.14774142]
[1736367856768,6.2567,194.92,194.87,2.58]
[1736367865781,13.93795287,194.97,194.87,2.58]
[1736367866802,6.0027,194.97,194.87,2.58]
[1736367871120,6.0027,194.97,194.87,12.72774142]
[1736367871406,6.0027,194.97,194.87,2.58]
[1736367873087,6.0027,194.97,194.9,33.92462542]
[1736367873311,6.0027,194.97,194.91,10.14774142]
[1736367873493,7.93525287,194.98,194.91,10.14774142]
[1736367874513,6.0617,195.02,194.91,10.14774142]
[1736367876593,6.0617,195.02,194.88,152.989]
[1736367876594,6.0617,195.02,194.93,10.14774142]
[1736367877624,6.0617,195.02,194.94,10.14774142]
[1736367877825,6.0617,195.02,194.95,2.58]
[1736367882493,6.0617,195.02,194.9,10.14774142]
[1736367882817,6.0617,195.02,194.91,2.58]
[1736367884128,20.0,194.99,194.91,2.58]
[1736367885123,20.0,194.99,194.89,2.58]
[1736367886697,20.0,194.99,194.88,10.14774142]
[1736367886898,20.0,194.99,194.85,81.6]
[1736367886899,20.0,194.99,194.89,2.58]
[1736367887397,20.0,194.94,194.78,1.5264]
[1736367887593,20.0,194.9,194.78,140.0264]
[1736367887793,20.0,194.9,194.75,12.72774142]
[1736367888209,20.0,194.9,194.76,23.776884]
[1736367888405,20.0,194.9,194.77,10.14774142]
[1736367892339,20.0,194.9,194.78,23.776884]
[1736367892625,20.0,194.9,194.78,33.92462542]
[1736367893309,20.0,194.9,194.78,23.776884]
[1736367893510,20.0,194.9,194.79,10.14774142]
[1736367893713,20.0,194.9,194.8,10.14774142]
[1736367894227,20.0,194.9,194.79,10.14774142]
[1736367895024,20.0,194.9,194.78,10.14774142]
[1736367896146,20.0,194.92,194.8,23.776884]
[1736367897706,20.0,194.9,194.78,10.14774142]
[1736367904337,20.0,194.9,194.8,23.776884]
[1736367904910,6.8228,194.93,194.82,33.92462542]
[1736367905234,6.8228,194.93,194.83,12.72774142]
[1736367906645,6.8228,194.93,194.84,23.776884]
[1736367906829,6.8228,194.93,194.83,2.58]
[1736367907741,6.8228,194.93,194.83,33.47]
[1736367907917,6.8228,194.93,194.83,2.58]
[1736367923234,6.8228,194.93,194.81,20.0]
[1736367923432,6.8228,194.93,194.81,22.58]
[1736367923948,20.0,194.9,194.81,2.58]
[1736367924655,81.3,194.95,194.78,138.5]
[1736367924656,0.5169,194.88,194.78,2.58]
[1736367924839,20.0,194.85,194.75,2.58]
[1736367925248,20.0,194.85,194.73,1.6027]
[1736367925445,20.0,194.85,194.74,2.58]
[1736367925758,20.0,194.85,194.73,1.6027]
[1736367925929,20.0,194.85,194.75,2.58]
[1736367927152,81.8169,194.88,194.76,23.776884]
[1736367931359,0.5169,194.88,194.8,33.92462542]
[1736367931761,0.5169,194.88,194.8,23.776884]
[1736367932661,0.5169,194.88,194.78,10.14774142]
[1736367932662,0.5169,194.88,194.79,23.776884]
[1736367932829,0.5169,194.88,194.77,10.14774142]
[1736367933031,0.5169,194.88,194.75,151.22774142]
[1736367933228,0.5169,194.88,194.75,141.08]
[1736367933845,20.0,194.86,194.76,2.58]
[1736367935263,20.0,194.86,194.76,26.356884]
[1736367935467,20.0,194.86,194.77,23.776884]
[1736367936166,0.5169,194.88,194.78,10.14774142]
[1736367936746,0.5169,194.88,194.78,23.776884]
[1736367938173,0.5169,194.88,194.78,33.92462542]
[1736367940674,0.5169,194.88,194.79,30.14774142]
[1736367940882,0.5169,194.88,194.8,23.776884]
[1736367941184,0.5169,194.88,194.8,10.14774142]
[1736367941481,6.1476,194.89,194.81,10.14774142]
[1736367941984,6.1476,194.89,194.8,23.776884]
[1736367942173,6.1476,194.89,194.82,23.776884]
[1736367942346,7.93525287,194.92,194.82,10.14774142]
[1736367942543,7.93525287,194.92,194.85,10.14774142]
[1736367942762,7.93525287,194.92,194.86,23.776884]
[1736367943156,6.4172,194.93,194.86,23.776884]
[1736367947482,0.5169,194.94,194.86,23.776884]
[1736367947483,6.2908,194.98,194.86,33.92462542]
[1736367947681,6.2908,194.98,194.88,23.776884]
[1736367948263,6.2908,194.98,194.88,10.14774142]
[1736367950176,6.2908,194.98,194.88,23.776884]
[1736367950884,6.2908,194.98,194.88,10.14774142]
[1736367952779,6.2908,194.98,194.87,33.92462542]
[1736367952962,6.2908,194.98,194.87,23.776884]
[1736367953890,6.2908,194.98,194.82,12.8322]
[1736367954076,7.93525287,195.0,194.79,6.5978]
[1736367954077,6.4984,194.93,194.79,148.64774142]
[1736367954263,6.4984,194.93,194.8,2.56]
[1736367954462,20.0,194.9,194.8,2.56]
[1736367954680,20.0,194.9,194.77,2.56]
[1736367955063,20.0,194.9,194.77,32.70774142]
[1736367955265,20.0,194.9,194.77,22.56]
[1736367955563,20.0,194.9,194.77,2.56]
[1736367955786,20.0,194.9,194.77,12.70774142]
[1736367956086,20.0,194.9,194.77,32.70774142]
[1736367956270,20.0,194.9,194.78,23.776884]
[1736367959478,20.0,194.9,194.78,33.92462542]
[1736367960288,6.4984,194.93,194.82,10.14774142]
[1736367960493,6.4984,194.93,194.82,30.14774142]
[1736367960680,6.4984,194.93,194.83,23.776884]
[1736367962897,6.4984,194.93,194.82,20.0]
[1736367963072,6.4984,194.93,194.83,23.776884]
[1736367963489,6.4984,194.93,194.83,33.92462542]
[1736367965886,6.4984,194.93,194.82,20.0]
[1736367966385,6.4984,194.93,194.83,23.776884]
[1736367969796,6.4984,194.93,194.83,33.92462542]
[1736367972206,6.4984,194.93,194.83,23.776884]
[1736367972379,6.4984,194.93,194.82,250.24774142]
[1736367972580,6.4984,194.93,194.83,23.776884]
[1736367973219,6.4984,194.93,194.85,33.92462542]
[1736367973505,6.4984,194.93,194.87,23.776884]
[1736367974206,6.4984,194.93,194.87,10.14774142]
[1736367974905,6.4984,194.93,194.87,23.776884]
[1736367978111,6.4984,194.93,194.86,23.776884]
[1736367978314,6.4984,194.93,194.86,33.92462542]
[1736367978609,6.4984,194.93,194.86,23.776884]
[1736367979795,6.4984,194.93,194.85,222.66]
[1736367980186,6.4984,194.93,194.85,2.56]
[1736367980801,20.0,194.9,194.76,138.5]
[1736367980999,6.7719,194.89,194.77,2.56]
[1736367984909,20.0,194.86,194.77,2.56]
[1736367985908,20.0,194.86,194.76,23.776884]
[1736367986693,6.7719,194.89,194.76,23.776884]
[1736367987103,6.7719,194.89,194.76,43.776884]
[1736367992316,6.7719,194.89,194.76,53.92462542]
[1736367993012,6.7719,194.89,194.78,23.776884]
[1736367993217,6.7719,194.89,194.78,33.92462542]
[1736367993725,6.7719,194.89,194.77,33.92462542]
[1736367994313,6.7719,194.89,194.77,23.776884]
[1736367994615,6.7719,194.89,194.76,30.14774142]
[1736367994820,6.7719,194.89,194.77,23.776884]
[1736367995198,6.7719,194.89,194.77,33.92462542]
[1736367995929,6.7719,194.89,194.78,10.14774142]
[1736367996137,6.7719,194.89,194.77,33.92462542]
[1736367998527,6.7719,194.89,194.79,23.776884]
[1736368000801,6.7719,194.89,194.79,33.92462542]
[1736368002127,6.7719,194.89,194.8,10.14774142]
[1736368002526,6.7719,194.89,194.81,23.776884]
[1736368003398,6.7719,194.89,194.81,33.92462542]
[1736368003826,6.7719,194.89,194.81,23.776884]
[1736368004123,6.7719,194.89,194.78,41.03774142]
[1736368004330,6.7719,194.89,194.79,10.14774142]
[1736368004535,6.7719,194.89,194.8,33.92462542]
[1736368004701,6.7719,194.89,194.8,64.81462542]
[1736368008034,6.7719,194.89,194.82,33.92462542]
[1736368008238,14.9403668,194.94,194.85,23.776884]
[1736368008410,14.9403668,194.94,194.83,12.70774142]
[1736368008740,14.9403668,194.94,194.84,23.776884]
[1736368009439,6.8924,194.94,194.84,23.776884]
[1736368011437,6.8924,194.94,194.84,33.92462542]
[1736368013727,6.8924,194.94,194.85,10.14774142]
[1736368016261,6.8924,194.94,194.84,33.92462542]
[1736368018466,6.8924,194.94,194.83,138.5]
[1736368018636,6.8924,194.94,194.83,141.06]
[1736368018969,6.8924,194.94,194.84,23.776884]
[1736368035784,6.8924,194.94,194.86,23.776884]
[1736368036879,6.8924,194.94,194.86,33.92462542]
[1736368037181,6.8924,194.94,194.88,23.776884]
[1736368041591,6.8924,194.94,194.87,30.89]
[1736368041592,6.8924,194.94,194.83,253.55]
[1736368041763,6.8924,194.94,194.84,2.56]
[1736368043754,6.8924,194.94,194.79,81.6]
[1736368043957,6.8924,194.94,194.8,2.56]
[1736368044493,8.0479668,194.92,194.8,2.56]
[1736368044857,8.0479668,194.92,194.81,2.56]
[1736368045085,8.0479668,194.91,194.81,2.56]
[1736368045990,0.5169,194.89,194.8,2.56]
[1736368046697,8.5648668,194.89,194.8,2.56]
[1736368047365,26.6157,194.85,194.72,35.86819304]
[1736368047583,26.6157,194.85,194.73,2.56]
[1736368048275,26.6157,194.85,194.72,35.86819304]
[1736368048468,0.5169,194.84,194.72,35.86819304]
[1736368048790,20.0,194.8,194.72,35.86819304]